fUSD/lending_fUSD_20250331
["ID","MTS","AMOUNT","RATE_DAILY","PERIOD"]
[356909468,1743419432122,-166.66666668,0.00033407,2]
[356909469,1743419432133,-153.11,0.00036027,2]
[356909470,1743419432142,-177.46,0.00037179,2]
[356909471,1743419432152,-281.05457529,0.00037179,2]
[356909472,1743419432161,-150.99,0.00040133,2]
[356909473,1743419432171,-477.8694863,0.00042,120]
[356909474,1743419432181,-2968.846218,0.00044402,2]
[356909475,1743419432190,-468.67,0.00044626,2]
[356909476,1743419432199,-153.11,0.00045205,2]
[356909477,1743419432209,-983.81,0.00045371,2]
[356909478,1743419432218,-4123.36,0.00045447,2]
[356909479,1743419432228,-311.86,0.00045479,2]
[356909480,1743419432238,-1195.45,0.00045496,2]
[356909481,1743419432247,-150.0,0.00045509,2]
[356909482,1743419432257,-1398.34,0.00045514,2]
[356909483,1743419432266,-1700.84,0.00045605,2]
[356909484,1743419432276,-152.0,0.00045672,3]
[356909485,1743419432285,-250.0,0.00045898,2]
[356909486,1743419432295,-150.0,0.00045918,2]
[356909487,1743419432304,-8769.55733421,0.00045938,2]
[356909488,1743419432320,-6099.9999999,0.00045938,2]
[356909489,1743419432331,-5880.0,0.00045938,2]
[356909490,1743419432343,-3150.44266589,0.00045938,2]
[356909491,1743419432353,-399.55733911,0.00045971,2]
[356909492,1743419432365,-1300.0,0.00045971,2]
[356909493,1743419432386,-514.0,0.00045971,2]
[356909494,1743419432399,-455.46985865,0.00045971,2]
[356909495,1743419432418,-2072.75435249,0.00045971,2]
[356909496,1743419432430,-1132.94940899,0.00045971,2]
[356909497,1743419432442,-1844.71312705,0.00045971,2]
[356909498,1743419432453,-864.10549473,0.00045971,2]
[356909499,1743419432465,-425.85126356,0.00045971,2]
[356909891,1743419437940,-476.81295156,0.00045971,2]
[356909892,1743419437994,-1680.57800616,0.00045971,2]
[356909893,1743419438102,-566.26057689,0.00045971,2]
[356909894,1743419438158,-11900.30730437,0.00045971,2]
[356909895,1743419438171,-9699.07474949,0.00045971,2]
[356909896,1743419438183,-7196.11556695,0.00045971,2]
[356909897,1743419438194,-188.08,0.00046056,2]
[356909898,1743419438204,-173.97,0.00046087,120]
[356909899,1743419438214,-2460.26,0.00046191,120]
[356909900,1743419438224,-2987.28,0.00046191,2]
[356909901,1743419438234,-1000.0,0.00046204,7]
[356909902,1743419438243,-2569.14596185,0.00046206,2]
[356909903,1743419438255,-5088.48403815,0.00046206,2]
[356909904,1743419438265,-168.05,0.00046265,2]
[356909905,1743419438274,-370.35187795,0.00046319,2]
[356909906,1743419438285,-242.50534915,0.00046332,120]
[356909907,1743419438297,-172.51465085,0.00046332,120]
[356909908,1743419438307,-1641.49,0.00046437,2]
[356909909,1743419438323,-177.46,0.00046474,2]
[356909911,1743419438333,-370.35187795,0.00046743,2]
[356909913,1743419438343,-1747.41,0.00046778,2]
[356909915,1743419438353,-1000.0,0.00046804,2]
[356909917,1743419438363,-200.0,0.00046832,2]
[356909919,1743419438373,-2000.0,0.00046859,120]
[356909921,1743419438382,-468.67,0.0004689,2]
[356909922,1743419438393,-6493.0,0.0004692,2]
[356909923,1743419438404,-167.92530563,0.00046994,2]
[356909924,1743419438416,-202.42657232,0.00046994,2]
[356909925,1743419438426,-370.35187796,0.00047133,2]
[356909927,1743419438436,-451.47,0.00047321,2]
[356909929,1743419438447,-843.21,0.00047358,2]
[356909931,1743419438456,-1852.42,0.00047395,120]
[356909933,1743419438466,-360.76910779,0.00047396,2]
[356909935,1743419438478,-90.70089221,0.00047396,2]
[356909937,1743419438487,-451.47,0.00047471,2]
[356909939,1743419438496,-451.47,0.00047545,2]
[356909941,1743419438505,-451.47,0.0004762,2]
[356909943,1743419438514,-451.47,0.00047695,2]
[356909945,1743419438523,-451.47,0.00047769,2]
[356909947,1743419438532,-200.0,0.00047837,2]
[356909949,1743419438541,-451.47,0.00047844,2]
[356909951,1743419438551,-1074.922,0.0004789,81]
[356909953,1743419438561,-195.397,0.0004789,81]
[356909955,1743419438571,-179.33722999,0.0004789,15]
[356909957,1743419438580,-7289.1719,0.000479,2]
[356909959,1743419438591,-194.55346623,0.000479,30]
[356909961,1743419438600,-5000.0,0.000479,120]
[356909963,1743419438610,-703.08343008,0.000479,15]
[356909965,1743419438620,-451.47,0.00047919,2]
[356909967,1743419438631,-219.536275,0.00047919,120]
[356909969,1743419438642,-500.0,0.00047989,10]
[356909971,1743419438652,-500.0,0.00047989,120]
[356909973,1743419438662,-4871.23396901,0.00047989,7]
[356909975,1743419438673,-1272.3175,0.00047989,7]
[356909977,1743419438685,-13837.98006426,0.00047989,7]
[356909979,1743419438697,-400.165,0.00047989,7]
[356909991,1743419440743,-393.97109919,0.00033294,2]
[356909992,1743419440752,-704.34863802,0.00047989,7]
[356909994,1743419440763,-11315.62313356,0.00047989,7]
[356909996,1743419440775,-1686.24919452,0.00047989,7]
[356909998,1743419440786,-9613.12250063,0.00047989,7]
[356909999,1743419440796,-1014.63,0.00047989,120]
[356910000,1743419440805,-585.47748089,0.00047989,120]
[356910001,1743419440815,-514.75067879,0.00047989,120]
[356910002,1743419440825,-322.14791369,0.00047989,120]
[356910003,1743419440837,-215.16438657,0.00047989,120]
[356910004,1743419440847,-301.04361742,0.00047989,120]
[356910005,1743419440972,-0.0317162,0.00047989,120]
[356910006,1743419440984,-27.37935175,0.00047989,120]
[356910007,1743419440994,-500.0,0.00047989,120]
[356910008,1743419441004,-15.71455607,0.00047989,120]
[356910009,1743419441016,-673.98544393,0.00047989,120]
[356910010,1743419441026,-215.84661862,0.00047989,120]
[356910011,1743419441040,-229.36793745,0.00047989,120]
[356910047,1743419445964,-393.97109917,0.00037079,2]
[356910048,1743419445974,-270.63206255,0.00047989,120]
[356910049,1743419445984,-500.0,0.00047989,120]
[356910050,1743419445993,-513.67761234,0.00047989,120]
[356910051,1743419446003,-500.0,0.00047989,120]
[356910052,1743419446012,-500.0,0.00047989,120]
[356910053,1743419446021,-501.60758994,0.00047989,120]
[356910054,1743419446030,-500.0,0.00047989,120]
[356910055,1743419446039,-500.0,0.00047989,120]
[356910056,1743419446049,-500.0,0.00047989,120]
[356910057,1743419446058,-739.55,0.00047989,120]
[356910058,1743419446067,-287.6691755,0.00047989,120]
[356910059,1743419446123,-212.3308245,0.00047989,120]
[356910060,1743419446134,-391.6691755,0.00047989,2]
[356910061,1743419446231,-1000.3208245,0.00047989,2]
[356910062,1743419446241,-500.0,0.00047989,120]
[356910063,1743419446250,-500.14935,0.00047989,120]
[356910064,1743419446260,-140.05940251,0.00047994,2]
[356910065,1743419446271,-311.41059749,0.00047994,2]
[356910066,1743419446281,-300.0,0.00047999,30]
[356910067,1743419446291,-472.3659422,0.00047999,120]
[356910068,1743419446300,-361.3234603,0.00047999,120]
[356910069,1743419446312,-138.6765397,0.00047999,120]
[356910070,1743419446325,-500.0,0.00047999,120]
[356910071,1743419446335,-500.0,0.00047999,120]
[356910072,1743419446344,-500.0,0.00047999,120]
[356910073,1743419446353,-622.75853596,0.00047999,120]
[356910074,1743419446366,-94.49146404,0.00047999,120]
[356910075,1743419446375,-502.89821878,0.00047999,120]
[356910076,1743419446384,-228.64620564,0.00048,61]
[356910077,1743419446394,-7797.04626497,0.00048,41]
[356910079,1743419446406,-145.82150318,0.00048,41]
[356910081,1743419446415,-1037.96590518,0.00048,120]
[356910083,1743419446424,-484.893469,0.00048,120]
[356910088,1743420082464,161.1267893,0.00014805,2]
[356910089,1743420308791,-219.07,0.00015,2]
[356910090,1743420337000,1069.27614648,8e-05,2]
[356910092,1743420371982,-150.0,0.00014999,2]
[356910094,1743420422122,-151.16351891,0.00024,5]
[356910095,1743420434503,249.31,0.00033508,30]
[356910097,1743420483696,-152.91151117,0.00014999,2]
[356910098,1743420487062,-150.0,0.00014999,2]
[356910099,1743420493120,-150.0,0.00014999,2]
[356910100,1743420493652,1170.46033165,9e-05,2]
[356910106,1743420566646,-152.911511,0.00014924,2]
[356910108,1743420566676,-153.67994139,0.00014999,2]
[356910110,1743420566707,-150.0,0.00014999,2]
[356910111,1743420566737,-8944.0903671,0.00015,2]
[356910112,1743420566777,-9400.68181949,0.00015,2]
[356910113,1743420566815,-9400.68181949,0.00015,2]
[356910114,1743420566849,-8599.34223491,0.00015,2]
[356910119,1743420603248,350.0,0.00015,12]
[356910120,1743420608319,-151.94441106,0.0001499,2]
[356910131,1743420632225,-300.0,0.00014999,2]
[356910132,1743420632235,-150.0,0.00015,2]
[356910133,1743420632244,-27846.94643551,0.00015,2]
[356910134,1743420632334,-98897.2743477,0.00015,2]
[356910135,1743420632344,-62270.87195104,0.00015,2]
[356910136,1743420632552,-350.0,0.00015,2]
[356910137,1743420632565,-308.53272644,0.00015,2]
[356910206,1743420638372,-624.14999,0.00015,2]
[356910222,1743420640582,-947.66428876,0.00015,2]
[356910252,1743420962382,350.0,0.00014994,12]
[356910253,1743421082267,350.0,0.00014992,12]
[356910254,1743421110166,195.39895628,0.000147,2]
[356910255,1743421110201,145.74110296,0.000147,2]
[356910256,1743421110229,714.19689704,0.000147,2]
[356910257,1743421129739,-350.0,0.00016489,12]
[356910258,1743421129763,-350.0,0.00016489,12]
[356910259,1743421202853,350.0,0.00014992,12]
[356910260,1743421290295,-350.0,0.0001514,12]
[356910261,1743421321387,350.0,0.00014992,12]
[356910262,1743421330996,-2273.30309044,0.0001494,2]
[356910263,1743421331019,-6351.56317938,0.0001499,2]
[356910264,1743421331042,-150.0,0.00014992,2]
[356910265,1743421331065,-150.0,0.00014999,2]
[356910266,1743421331090,-1075.13373018,0.00015,2]
[356910267,1743421341631,-10000.0,0.00015,2]
[356910268,1743421342398,-10000.0,0.00015,2]
[356910269,1743421342815,-10000.0,0.00015,2]
[356910270,1743421343253,-10000.0,0.00015,2]
[356910271,1743421343588,-10000.0,0.00015,2]
[356910272,1743421344119,-10000.0,0.00015,2]
[356910273,1743421344487,-10000.0,0.00015,2]
[356910274,1743421344814,-10000.0,0.00015,2]
[356910275,1743421345120,-10000.0,0.00015,2]
[356910276,1743421345548,-10000.0,0.00015,2]
[356910277,1743421346000,-10000.0,0.00015,2]
[356910278,1743421346307,-10000.0,0.00015,2]
[356910279,1743421346621,-10000.0,0.00015,2]
[356910280,1743421346955,-10000.0,0.00015,2]
[356910281,1743421347301,-10000.0,0.00015,2]
[356910282,1743421347628,-10000.0,0.00015,2]
[356910283,1743421347961,-10000.0,0.00015,2]
[356910284,1743421348386,-10000.0,0.00015,2]
[356910285,1743421348811,-10000.0,0.00015,2]
[356910286,1743421349245,-10000.0,0.00015,2]
[356910287,1743421349701,-10000.0,0.00015,2]
[356910288,1743421350178,-10000.0,0.00015,2]
[356910289,1743421350476,-10000.0,0.00015,2]
[356910290,1743421350802,-10000.0,0.00015,2]
[356910291,1743421351184,-10000.0,0.00015,2]
[356910292,1743421351687,-10000.0,0.00015,2]
[356910293,1743421352108,-10000.0,0.00015,2]
[356910294,1743421352462,-10000.0,0.00015,2]
[356910295,1743421352933,-10000.0,0.00015,2]
[356910296,1743421353238,-10000.0,0.00015,2]
[356910297,1743421353712,-10000.0,0.00015,2]
[356910298,1743421354434,-10000.0,0.00015,2]
[356910299,1743421354594,-10000.0,0.00015,2]
[356910300,1743421354930,-10000.0,0.00015,2]
[356910301,1743421355367,-10000.0,0.00015,2]
[356910302,1743421355829,-10000.0,0.00015,2]
[356910303,1743421356190,-10000.0,0.00015,2]
[356910304,1743421356455,-10000.0,0.00015,2]
[356910305,1743421356776,-10000.0,0.00015,2]
[356910306,1743421357124,-10000.0,0.00015,2]
[356910307,1743421357481,-10000.0,0.00015,2]
[356910308,1743421357802,-10000.0,0.00015,2]
[356910309,1743421358115,-10000.0,0.00015,2]
[356910310,1743421358520,-10000.0,0.00015,2]
[356910311,1743421358795,-10000.0,0.00015,2]
[356910312,1743421359108,-10000.0,0.00015,2]
[356910313,1743421359461,-10000.0,0.00015,2]
[356910314,1743421360498,-10000.0,0.00015,2]
[356910315,1743421361085,-10000.0,0.00015,2]
[356910316,1743421365250,-10000.0,0.00015,2]
[356910317,1743421365659,-10000.0,0.00015,2]
[356910318,1743421366443,-10000.0,0.00015,2]
[356910319,1743421440528,-153.95816816,0.0001494,2]
[356910320,1743421447956,435.27421457,0.0001477,2]
[356910321,1743421448544,187.528197,7.945e-05,2]
[356910332,1743421832362,-2499.08235325,0.00015,2]
[356910334,1743421832371,-150.0,0.0001501,2]
[356910335,1743421832381,-415.16019986,0.00015259,2]
[356910336,1743421832391,-350.0,0.00016412,12]
[356910337,1743421832400,-150.0,0.00016412,2]
[356910338,1743421832410,-350.0,0.00016412,12]
[356910339,1743421832419,-150.0,0.000165,2]
[356910340,1743421832428,-350.0,0.000165,12]
[356910341,1743421832437,-500.0,0.0001715,2]
[356910342,1743421832447,-880.15416,0.00017639,2]
[356910343,1743421832456,-300.0,0.00017727,2]
[356910344,1743421832467,-4127.75226596,0.00017728,2]
[356910345,1743421832488,-4705.77773404,0.00017728,2]
[356910346,1743421832498,-622.98,0.00017728,2]
[356910347,1743421832508,-10494.92773296,0.00017728,2]
[356910348,1743421832519,-878.9,0.00017728,2]
[356910349,1743421832530,-834.16440156,0.00017728,2]
[356910350,1743421832550,-505.75987416,0.00017728,2]
[356910351,1743421832562,-2431.85650605,0.00017728,2]
[356910352,1743421832582,-269.355,0.00017728,2]
[356910353,1743421832605,-508.47198714,0.00017728,2]
[356910354,1743421832633,-4916.07449813,0.00017728,2]
[356910355,1743421832642,-150.99,0.00017728,2]
[356910356,1743421832652,-150.99,0.00017728,2]
[356910357,1743421832661,-420.0,0.00019347,2]
[356910358,1743421832671,-462.44191272,0.0002005,2]
[356910359,1743421832680,-155.52923662,0.0002005,2]
[356910360,1743421832690,-500.0,0.0002005,2]
[356910361,1743421832699,-181.27595117,0.0002005,2]
[356910362,1743421832709,-500.0,0.0002005,2]
[356910363,1743421832718,-152.88633908,0.0002005,2]
[356910364,1743421832731,-250.01656051,0.00022629,2]
[356910365,1743421832741,-250.0,0.00025,2]
[356910366,1743421832751,-1000.0,0.00025529,2]
[356910367,1743421832761,-1000.0,0.00025529,2]
[356910368,1743421832771,-158.28,0.00026849,2]
[356910369,1743421832780,-163.21,0.00026849,2]
[356910370,1743421832790,-300.0,0.00027,2]
[356910371,1743421832800,-336.13201009,0.00028,60]
[356910372,1743421832810,-163.24704345,0.00028,5]
[356910373,1743421832819,-506.49756525,0.00028,5]
[356910374,1743421832829,-582.53,0.0002819,2]
[356910375,1743421832838,-350.0,0.00029,2]
[356910376,1743421832848,-158.93,0.00029434,2]
[356910377,1743421832858,-2843.25,0.00029731,2]
[356910378,1743421832867,-292.04,0.00029999,120]
[356910379,1743421832877,-3517.60800598,0.0003,2]
[356910380,1743421832886,-1967.71042771,0.0003,2]
[356910381,1743421832896,-8558.44,0.00030081,2]
[356910382,1743421832906,-150.0,0.00030084,7]
[356910383,1743421832915,-159.5,0.00030325,2]
[356910384,1743421832925,-582.53,0.00030454,2]
[356910385,1743421832935,-400.0,0.00031,2]
[356910386,1743421832945,-150.0,0.0003159,2]
[356910387,1743421832954,-2154.52,0.00031593,2]
[356910388,1743421832964,-182.48,0.00031602,2]
[356910389,1743421832973,-1852.42,0.00031823,2]
[356910390,1743421832984,-250.0,0.00031828,2]
[356910392,1743421832994,-9430.0,0.000324,2]
[356910394,1743421833003,-582.53,0.00032718,2]
[356910396,1743421833012,-206.91,0.00032757,2]
[356910398,1743421833021,-173.98,0.00032932,120]
[356910400,1743421833031,-450.0,0.00033,2]
[356910402,1743421833041,-23900.0,0.00033171,2]
[356910404,1743421833051,-5553.0,0.000335,3]
[356910406,1743421833061,-458.0,0.00033508,30]
[356910408,1743421833072,-1000.0,0.00033508,30]
[356910410,1743421833081,-169.21,0.0003351,2]
[356910412,1743421833091,-3044.26,0.00033745,2]
[356910414,1743421833101,-270.31,0.00033757,2]
[356910416,1743421833115,-151.8,0.00033878,2]
[356910417,1743421833126,-2751.0,0.00033949,120]
[356910418,1743421833136,-289.08,0.00034241,120]
[356910419,1743421833147,-1000.0,0.00034476,2]
[356910420,1743421833158,-5553.0,0.000346,5]
[356910421,1743421833168,-184.19,0.00034778,2]
[356910422,1743421833177,-2312.56,0.0003478,2]
[356910423,1743421833187,-200.0,0.00034956,2]
[356910424,1743421833198,-582.53,0.00034982,2]
[356910425,1743421833208,-500.0,0.00035,2]
[356910426,1743421833218,-569.08254604,0.00035548,5]
[356910427,1743421833227,-1500.0,0.00035548,5]
[356910428,1743421833238,-152.97,0.00035616,2]
[356910429,1743421833248,-159.5,0.0003639,2]
[356910430,1743421833258,-177.46,0.00037046,2]
[356910432,1743421833267,-582.53,0.00037246,2]
[356910434,1743421833277,-28145.78,0.00037443,2]
[356910435,1743421833287,-1638.72174868,0.00038425,2]
[356910437,1743421833296,-859.938,0.00038525,52]
[356910439,1743421833306,-1000.0,0.00038785,2]
[356910441,1743421833315,-428.2824,0.00038888,30]
[356910443,1743421833326,-7044.36039161,0.00039452,30]
[356910445,1743421833336,-582.53,0.00039509,2]
[356910448,1743421833346,-1638.72174862,0.00039857,15]
[356910449,1743421833356,-14550.44062688,0.0004,14]
[356910452,1743421833366,-1638.72174862,0.00041289,15]
[356910453,1743421833376,-2843.25,0.00041624,2]
[356910455,1743421833385,-151.0,0.00041624,14]
[356910457,1743421833395,-151.0,0.00041624,14]
[356910459,1743421833404,-151.0,0.00041624,14]
[356910461,1743421833414,-256.292866,0.00041624,14]
[356910463,1743421833424,-151.0,0.00041624,14]
[356910465,1743421833434,-480.24979277,0.0004165,7]
[356910467,1743421833444,-155.856694,0.0004165,14]
[356910469,1743421833453,-1875.973655,0.0004165,14]
[356910471,1743421833463,-1875.973655,0.0004165,14]
[356910473,1743421833474,-582.53,0.00041773,2]
[356910475,1743421833484,-257.83,0.00042,120]
[356910476,1743421833495,-582.0,0.000421,3]
[356910477,1743421833505,-158.28,0.00042583,2]
[356910478,1743421833515,-1638.72174862,0.00042721,15]
[356910479,1743421833526,-151.0,0.00042976,14]
[356910480,1743421833536,-349.249828,0.00042976,14]
[356910481,1743421833546,-349.249828,0.00042976,14]
[356910482,1743421833556,-3734.00497053,0.00042987,2]
[356910489,1743421838291,-260.21967204,0.0001491,2]
[356910490,1743421838301,-213.99502947,0.00042987,2]
[356910491,1743421838311,-217.695,0.00042987,2]
[356910492,1743421838321,-1020.835,0.00042987,2]
[356910493,1743421838331,-1000.0,0.00043095,2]
[356910494,1743421838340,-582.53,0.00044037,2]
[356910495,1743421838350,-1638.72174862,0.00044153,15]
[356910496,1743421838360,-804.13,0.00045082,30]
[356910497,1743421838369,-456.2,0.00045082,30]
[356910498,1743421838379,-587.374961,0.00045567,30]
[356910499,1743421838389,-1638.72174862,0.00045584,15]
[356910500,1743421838399,-1875.973655,0.00045685,14]
[356910501,1743421838409,-1875.973655,0.00045685,14]
[356910502,1743421838418,-153.355246,0.00045685,14]
[356910503,1743421838428,-155.580991,0.00045685,14]
[356910504,1743421838438,-154.005275,0.00045685,14]
[356910505,1743421838449,-151.0,0.00045685,14]
[356910506,1743421838460,-675.211,0.00045987,2]
[356910507,1743421838469,-152.466267,0.0004599,14]
[356910508,1743421838479,-349.249828,0.0004599,14]
[356910509,1743421838490,-349.249828,0.0004599,14]
[356910510,1743421838499,-534.31867624,0.00046,120]
[356910511,1743421838511,-413.725,0.00046,120]
[356910512,1743421838522,-407.89752345,0.00046,120]
[356910513,1743421838534,-19101.95474224,0.00046,120]
[356910514,1743421838543,-158.170297,0.00046,14]
[356910515,1743421838553,-151.0,0.00046,14]
[356910516,1743421838562,-151.0,0.00046,14]
[356910517,1743421838572,-284.309391,0.00046,14]
[356910518,1743421838581,-587.374961,0.00046136,30]
[356910519,1743421838591,-150.0,0.00046178,2]
[356910520,1743421838600,-582.53,0.00046301,2]
[356910521,1743421838609,-174.21,0.00046488,120]
[356910522,1743421838619,-150.0,0.00046521,2]
[356910523,1743421838628,-150.0,0.00046533,2]
[356910524,1743421838637,-500.0,0.00046575,120]
[356910525,1743421838646,-516.51229169,0.00046575,120]
[356910526,1743421838656,-500.0,0.00046575,120]
[356910527,1743421838665,-500.0,0.00046575,120]
[356910528,1743421838674,-500.0,0.00046575,120]
[356910529,1743421838683,-1762.59,0.00046575,120]
[356910530,1743421838692,-500.0,0.00046575,120]
[356910531,1743421838702,-500.0,0.00046575,120]
[356910532,1743421838711,-500.0,0.00046575,120]
[356910533,1743421838720,-660.96,0.00046575,120]
[356910534,1743421838730,-500.0,0.00046575,120]
[356910535,1743421838740,-1333.99,0.00046575,2]
[356910536,1743421838750,-687.37,0.00046575,120]
[356910537,1743421838759,-500.0,0.00046575,120]
[356910538,1743421838768,-457.56168892,0.00046575,120]
[356910539,1743421838777,-972.35,0.00046575,120]
[356910540,1743421838787,-150.0,0.00046649,7]
[356910541,1743421838797,-587.374961,0.00046706,30]
[356910542,1743421838806,-1476.0,0.00046749,7]
[356910544,1743421838815,-150.0,0.00046775,7]
[356910546,1743421838825,-300.0,0.00046821,10]
[356910548,1743421838834,-500.0,0.00046849,120]
[356910550,1743421838845,-500.0,0.00046849,120]
[356910552,1743421838854,-500.0,0.00046849,120]
[356910553,1743421838864,-600.0,0.00046849,120]
[356910554,1743421838874,-1762.59,0.00046849,120]
[356910555,1743421838884,-500.0,0.00046849,120]
[356910556,1743421838893,-500.0,0.00046849,120]
[356910557,1743421838904,-500.0,0.00046849,120]
[356910558,1743421838913,-660.96,0.00046849,120]
[356910559,1743421838923,-500.0,0.00046849,120]
[356910560,1743421838932,-1333.99,0.00046849,2]
[356910561,1743421838942,-687.37,0.00046849,120]
[356910562,1743421838951,-500.0,0.00046849,120]
[356910563,1743421838961,-972.35,0.00046849,120]
[356910564,1743421838971,-1638.72174862,0.00047016,15]
[356910565,1743421838980,-1000.0,0.00047064,14]
[356910566,1743421838990,-500.0,0.00047123,120]
[356910567,1743421839000,-500.0,0.00047123,120]
[356910568,1743421839010,-365.77,0.00047123,120]
[356910569,1743421839020,-1762.59,0.00047123,120]
[356910570,1743421839030,-500.0,0.00047123,120]
[356910571,1743421839040,-500.0,0.00047123,120]
[356910572,1743421839050,-163.19995745,0.00047123,120]
[356910573,1743421839130,-307.7546171,0.00047123,120]
[356910574,1743421839141,-660.96,0.00047123,120]
[356910575,1743421839150,-500.0,0.00047123,120]
[356910576,1743421839161,-1333.99,0.00047123,2]
[356910577,1743421839171,-687.37,0.00047123,120]
[356910578,1743421839180,-500.0,0.00047123,120]
[356910579,1743421839190,-972.35,0.00047123,120]
[356910580,1743421839200,-1495.96,0.00047144,2]
[356910581,1743421839209,-150.0,0.00047182,7]
[356910582,1743421839219,-154.51708176,0.00047189,14]
[356910583,1743421839229,-150.0,0.00047196,7]
[356910584,1743421839240,-1495.96,0.00047219,2]
[356910585,1743421839250,-1875.973655,0.00047219,14]
[356910586,1743421839259,-1875.973655,0.00047219,14]
[356910587,1743421839269,-587.374961,0.00047276,30]
[356910588,1743421839278,-1495.96,0.00047293,2]
[356910589,1743421839288,-1495.96,0.00047367,2]
[356910590,1743421839298,-722.4541241,0.00047387,3]
[356910591,1743421839308,-285.36472079,0.00047397,120]
[356910592,1743421839318,-500.0,0.00047397,120]
[356910593,1743421839328,-1762.59,0.00047397,120]
[356910594,1743421839338,-500.0,0.00047397,120]
[356910595,1743421839347,-500.0,0.00047397,120]
[356910596,1743421839356,-660.96,0.00047397,120]
[356910597,1743421839365,-500.0,0.00047397,120]
[356910598,1743421839374,-1333.99,0.00047397,2]
[356910599,1743421839384,-687.37,0.00047397,120]
[356910600,1743421839393,-500.0,0.00047397,120]
[356910601,1743421839403,-972.35,0.00047397,120]
[356910602,1743421839413,-1000.0,0.000474,7]
[356910603,1743421839423,-1000.0,0.00047404,2]
[356910604,1743421839432,-1495.96,0.00047442,2]
[356910605,1743421839442,-722.4541241,0.00047497,3]
[356910606,1743421839453,-349.249828,0.00047507,14]
[356910607,1743421839462,-349.249828,0.00047507,14]
[356910608,1743421839475,-151.0,0.00047507,14]
[356910609,1743421839484,-151.0,0.00047507,14]
[356910610,1743421839495,-155.224343,0.00047507,14]
[356910611,1743421839504,-156.445801,0.00047507,14]
[356910612,1743421839513,-1495.96,0.00047516,2]
[356910613,1743421839523,-150.0,0.00047529,7]
[356910614,1743421839533,-1495.96,0.00047591,2]
[356910615,1743421839542,-1495.96,0.00047665,2]
[356910616,1743421839552,-500.0,0.00047671,120]
[356910617,1743421839561,-1762.59,0.00047671,120]
[356910618,1743421839571,-500.0,0.00047671,120]
[356910619,1743421839580,-500.0,0.00047671,120]
[356910620,1743421839589,-660.96,0.00047671,120]
[356910621,1743421839599,-500.0,0.00047671,120]
[356910622,1743421839608,-1333.99,0.00047671,2]
[356910623,1743421839618,-687.37,0.00047671,120]
[356910624,1743421839627,-377.33,0.00047671,120]
[356910625,1743421839636,-972.35,0.00047671,120]
[356910626,1743421839645,-150.0,0.00047672,7]
[356910627,1743421839655,-722.4541241,0.00047706,3]
[356910628,1743421839663,-156.28715357,0.00047709,7]
[356910629,1743421839673,-150.0,0.00047714,7]
[356910630,1743421839682,-150.0,0.00047716,7]
[356910631,1743421839691,-150.0,0.00047716,7]
[356910632,1743421839700,-150.0,0.00047716,7]
[356910633,1743421839710,-150.0,0.00047717,7]
[356910634,1743421839719,-150.0,0.0004772,7]
[356910635,1743421839728,-150.0,0.0004772,7]
[356910636,1743421839738,-150.0,0.00047722,7]
[356910637,1743421839748,-150.0,0.0004773,7]
[356910638,1743421839757,-150.0,0.00047736,7]
[356910639,1743421839767,-150.0,0.00047738,7]
[356910640,1743421839776,-1495.96,0.0004774,2]